[Event "Frauenbundesliga 2024-25"]
[Site "Germany"]
[Date "2025.01.26"]
[Round "4.2"]
[White "Khrapko, Marharyta"]
[Black "Kiolbasa, Oliwia"]
[Result "0-1"]
[Annotator "TA"]
[ECO "A09"]
[WhiteElo "2168"]
[BlackElo "2357"]
[PlyCount "76"]
[EventDate "2024.11.06"]
[EventType "team-tourn"]
[EventCountry "GER"]
[SourceTitle "playchess.com"]
[Source "ChessBase"]
[SourceQuality "1"]
[TimeControl "40/5400+30:1800+30"]

{[%evp 11,76,0,8,0,26,-8,25,23,33,37,19,18,73,62,56,59,106,86,78,0,10,-56,-56,-272,-289,-367,-171,-372,-313,-369,-293,-915,-914,-940,-833,-768,-745,-864,-857,-826,-835,-980,-952,-2212,-2162,-29990,-29983,-29983,-29984,-29984,-1875,-29985,-29986,-29989,-29990,-29990,-5405,-5114,-5114,-5043,-5048,-4990,-4588,-1841,-1827,-1841,-1614]} 1. c4 {[%emt 0:00:03]} e6 {[%emt 0:01:26]} 2. g3 {[%emt 0:00:04]} d5 {[%emt 0:01:34][%cal Bd7d5,Bd5d4][%mdl 32]} 3. Bg2 {[%emt 0:00:03]} Nf6 {[%emt 0:01:34]} 4. Nf3 {[%emt 0:00:09]} d4 {[%emt 0:03:43]} 5. O-O {[%emt 0:01:51]} c5 {[%emt 0:01:04]} 6. d3 {[%emt 0:00:53]} Nc6 {[%emt 0:00:45]} 7. e3 {[%emt 0:00:29] A09: Réti Opening: 1 Nf3 d5 2 c4.} h6 {[%emt 0:00:56]} 8. Re1 {[%emt 0:03:31]} Be7 {[%emt 0:08:13]} 9. exd4 {[%emt 0:01:33] White has an edge.} cxd4 {[%emt 0:00:08]} 10. Na3 {[%emt 0:00:03]} O-O {[%emt 0:06:25]} 11. Bf4 {[%emt 0:02:19]} g5 $146 {[%emt 0:16:38]} (11... Bb4 $11) (11... Bc5 12. Nc2 Nd7 13. a3 a5 14. b3 Re8 15. Bd2 e5 16. b4 Bd6 17. c5 Bf8 {1-0 Ding,L (2762)-Praggnanandhaa,R (2747) Norway Chess Armageddon 12th rapid 2024 (2)}) 12. Bd2 {[%emt 0:10:02]} Nd7 {[%emt 0:02:21][%cal Bf6d7,Bd7c5,Bc5d3][%mdl 32]} 13. h4 {[%emt 0:01:34]} e5 {[%emt 0:09:13]} (13... Nc5 $14 {is more appropriate.}) 14. hxg5 {[%emt 0:05:18]} hxg5 {[%emt 0:01:34]} 15. Nh2 {[%emt 0:07:32]} (15. Nc2 $16) 15... Nc5 $1 $11 {[%emt 0:04:05]} 16. f4 {[%emt 0:08:54]} (16. Qe2 $11) 16... Nxd3 $15 {[%emt 0:10:28][%csl Od4] Black has a strong passed pawn} 17. Qh5 $2 {[%emt 0:05:47] [#] Now White is beyond hope.} Kg7 $1 $19 {[%emt 0:00:52]} (17... Nxb2 $2 18. Be4 f5 19. Qg6+ Kh8 20. Qh6+ Kg8 21. Bd5+ (21. Bxc6 bxc6 22. Qg6+ Kh8 $16) 21... Rf7 22. Qg6+ (22. Bxf7+ Kxf7 23. Nf3 Qf8 $18) 22... Kh8 23. Qxf7 $18 (23. Bxf7 Qf8 $18)) 18. Rf1 {[%emt 0:04:23][%cal Rf4g5]} f5 {[%emt 0:09:17]} (18... Nxb2 19. fxg5 d3 20. Qh6+ Kg8 21. g6 Bc5+ 22. Kh1 fxg6 23. Qxg6+ (23. Bd5+ Qxd5+ 24. cxd5 Bf5 $18) 23... Kh8 24. Bd5 $18 (24. Qh6+ Kg8 $18)) (18... Rh8 $142 19. Qe2 Nxb2 (19... Bf5 20. fxg5 Bg6 21. Be4 $11) 20. fxg5 d3 (20... Bxa3 $2 21. Bxc6 bxc6 22. Qxe5+ Kg8 23. Rxf7 $19)) 19. fxg5 $2 {[%emt 0:04:26]} (19. Bd5) 19... Rh8 {[%emt 0:00:05]} (19... Nxb2 $2 20. Qh6+ Kf7 21. g6+ Ke8 22. g7 $18) 20. Qe2 {[%emt 0:00:02]} e4 {[%emt 0:00:04]} (20... Nxb2 21. Bxc6 bxc6 22. g4 (22. Qxe5+ Kg8 $11) 22... Bxg5 (22... Bxa3 23. gxf5 Kf8 24. Rae1 $15) 23. Bxg5 Qxg5 24. Rab1 $16) 21. g4 $2 {[%emt 0:00:07]} (21. Bxe4 fxe4 22. Qxe4) 21... Bd6 {[%emt 0:04:45]} (21... Bxg5 22. gxf5 e3 (22... Nxb2 23. Bxe4 Kf8 24. f6 $18) (22... Bxd2 23. Qxd2 Qh4 24. Bxe4 $17) 23. Qxd3 $15) 22. Nf3 {[%emt 0:03:31]} exf3 {[%emt 0:01:39]} 23. Rxf3 {[%emt 0:00:48]} Nde5 {[%emt 0:01:46]} (23... Nxb2 24. gxf5 Bxf5 (24... Bh2+ $2 25. Kf1 $17) 25. Rxf5 Bh2+ 26. Kf1 $15) 24. Rxf5 {[%emt 0:00:10]} Bxf5 {[%emt 0:01:32]} 25. gxf5 {[%emt 0:00:02]} d3 {[%emt 0:00:08]} 26. f6+ {[%emt 0:00:26]} Kf8 {[%emt 0:00:16]} 27. Qf2 {[%emt 0:05:06]} Ng4 {[%emt 0:02:30]} 28. Qf5 {[%emt 0:01:13]} Qb6+ {[%emt 0:01:00]} 29. c5 {[%emt 0:03:01]} Bxc5+ {[%emt 0:03:26]} 30. Kf1 {[%emt 0:00:03]} Nh2+ {[%emt 0:00:19]} (30... Qxb2 31. Qxc5+ Kf7 32. Qd5+ Kf8 33. Qd6+ Kf7 34. Qd7+ Kg6 35. Be4+ (35. Qxd3+ Kf7 $18) 35... Kh5 36. Qxd3 $18 (36. Qf7+ $2 Kh4 $19)) 31. Ke1 {[%emt 0:00:03]} Bxa3 {[%emt 0:00:13]} (31... Qxb2 32. Qxc5+ Kf7 33. g6+ Kxg6 34. Be4+ (34. Qg5+ Kf7 $18) 34... Kxf6 (34... Kf7 35. Bd5+ Ke8 36. Bxc6+ Kf7 37. Bd5+ Kg6 38. Qg1+) 35. Qg5+ (35. Bc3+ Qxc3+ 36. Qxc3+ Ne5 $18) 35... Ke6 36. Qf5+ Ke7 37. Rb1 $18 (37. Bg5+ Ke8 $11)) 32. g6 {[%emt 0:03:10]} Qg1+ {[%emt 0:01:44]} ({Inferior is} 32... Qxb2 33. g7+ Kf7 34. Bd5+ (34. gxh8=R $2 {too greedy.} Qxa1+ 35. Kf2 Qd4+ 36. Ke1 Qg1+ 37. Bf1 Rxh8 $19) 34... Ke8 35. gxh8=Q+ (35. gxh8=R+ Bf8 36. Qe6+ Kd8 37. Qd6+ Ke8 38. Rxf8#) 35... Bf8 36. Qe6+ Kd8 37. Qd6+ Ke8 38. Qhxf8#) 33. Bf1 {[%emt 0:00:02]} Re8+ {[%emt 0:00:58]} (33... Ne5 $142 34. g7+ Kf7 35. Qxd3 Nxd3+ 36. Ke2 Nxb2 (36... Kxf6 $2 37. gxh8=B+ Rxh8 38. Kxd3 $19) (36... Rhd8 {is a self mate.} 37. Kd1 Qxf1+ 38. Kc2) 37. Bh6 Rhe8+ (37... Rxh6 38. Rc1 Re8+ 39. Kd2 Nxf1+ 40. Rxf1 Rh2+ 41. Rf2 Qxf2+ 42. Kc3 Rh3#) 38. Kd2 Qd4+ (38... Nxf1+ 39. Rxf1 Rad8+ 40. Kc2 Rc8+ 41. Kb3) 39. Kc2 Rec8+ (39... Qxf6 40. Rc1 Rac8+ 41. Bc4+ Rxc4+ 42. Kb1 Rxc1+ 43. Bxc1 Qf1 44. g8=B+ Rxg8 45. Kc2 Qd3#) 40. Bc4+ Rxc4+ 41. Kb3 Qd3#) 34. Kd1 {[%emt 0:00:06] Black is clearly winning.} Qxf1+ {[%emt 0:00:35]} 35. Qxf1 {[%emt 0:00:03]} Nxf1 {[%emt 0:00:06]} 36. g7+ {[%emt 0:00:37]} Kf7 {[%emt 0:00:33]} 37. gxh8=Q {[%emt 0:00:17]} Rxh8 {[%emt 0:00:05]} 38. bxa3 {[%emt 0:00:18] [#]} Ne3+ $1 {[%emt 0:01:26][%mdl 512] Weighted Error Value: White=1.19/Black=0.25 (precise)   Loses game:     	White=1     	---        Mistake:       	White=4     	Black=3      Inaccurate:     	White=1     	Black=2      OK:         	White=3     	Black=5      Best:        	---       	Black=1      Strong:       	---       	Black=2} 0-1

[Event "Frauenbundesliga 2024-25"]
[Site "Germany"]
[Date "2025.01.26"]
[Round "4.3"]
[White "Schneider, Jana"]
[Black "Schloffer, Jasmin-Denise"]
[Result "1-0"]
[Annotator "TA"]
[ECO "B15"]
[WhiteElo "2260"]
[BlackElo "2157"]
[PlyCount "159"]
[EventDate "2024.11.06"]
[EventType "team-tourn"]
[EventCountry "GER"]
[SourceTitle "playchess.com"]
[Source "ChessBase"]
[SourceQuality "1"]
[TimeControl "40/5400+30:1800+30"]

{[%evp 19,159,18,41,0,22,27,19,26,52,0,3,-15,-14,-26,2,2,0,0,12,7,8,0,0,0,0,0,8,0,0,0,279,343,339,346,338,345,337,331,305,305,394,381,407,405,395,378,376,353,384,361,322,269,207,136,180,185,185,177,169,161,185,147,185,171,172,172,185,147,147,148,172,150,143,106,126,119,119,116,119,95,99,95,97,98,99,79,79,79,94,103,94,109,102,8,14,12,48,48,48,51,471,471,359,354,883,872,788,757,633,293,506,499,499,0,396,424,380,212,372,306,436,412,4133,11418,11418,12816,12524,12639,12524,12348,6635,6070,12524,12524,6620,5125,29981,29982,29980,29981,29998,29999]} 1. e4 {[%emt 0:00:07]} c6 {[%emt 0:00:05]} 2. d4 {[%emt 0:00:09]} d5 {[%emt 0:00:05]} 3. Nc3 {[%emt 0:00:06]} dxe4 {[%emt 0:00:05]} 4. Nxe4 {[%emt 0:00:06]} Nf6 {[%emt 0:00:05]} 5. Nxf6+ {[%emt 0:00:09]} exf6 {[%emt 0:00:05]} 6. c3 {[%emt 0:00:34]} Bd6 {[%emt 0:00:07]} 7. Bd3 {[%emt 0:00:10]} O-O {[%emt 0:00:07]} 8. Qc2 {[%emt 0:00:19]} Re8+ {[%emt 0:00:07]} 9. Ne2 {[%emt 0:00:09]} h6 {[%emt 0:00:05]} 10. Be3 {[%emt 0:00:27]} Nd7 {[%emt 0:00:28][%cal Of6f5]} 11. c4 {[%emt 0:00:24] B15: Caro-Kann: 3 Nc3: 3...g6 and 3...dxe4 4 Nxe4 Nf6 5 Nxf6+ exf6.} Nf8 {[%emt 0:07:22]} 12. O-O {[%emt 0:03:55]} Be6 {[%emt 0:07:31]} 13. Rae1 $146 {[%emt 0:06:31] The position is equal.} (13. Rad1 Qa5 14. Ng3 Rad8 15. a3 a6 16. Rfe1 Bb8 17. Nf1 b5 18. cxb5 cxb5 19. Be4 {1-0 Shogdzhiev,R (2260)-Martic,I (2268) Belgrade Radnicki IM 12 2024 (6)}) 13... Rc8 {[%emt 0:04:37]} 14. Qd2 {[%emt 0:07:21]} (14. Ng3 $14 {might be stronger.}) 14... f5 $11 {[%emt 0:14:28]} 15. d5 {[%emt 0:16:13]} cxd5 {[%emt 0:02:48]} 16. cxd5 {[%emt 0:00:22]} Bxd5 {[%emt 0:10:01]} 17. Bxf5 {[%emt 0:01:22]} Be6 {[%emt 0:00:29]} 18. Nd4 {[%emt 0:06:03]} Bxf5 {[%emt 0:13:39]} 19. Nxf5 {[%emt 0:00:20]} Be5 {[%emt 0:00:08][%cal Bd6e5,Be5c3,Bc3d4,Bd4c5][%mdl 32]} 20. Qb4 {[%emt 0:03:10]} (20. Qxd8 Rcxd8 21. Bxa7 Bxb2 22. Rxe8 Rxe8 23. Rb1) 20... Qf6 {[%emt 0:04:34][%csl LRb2,LRf5]} 21. Qg4 {[%emt 0:02:55]} Ng6 {[%emt 0:06:02]} 22. b3 {[%emt 0:09:47][%cal Oh2h4] The position is symmetric and equal} b6 {[%emt 0:03:06]} 23. h4 {[%emt 0:00:34]} Bc3 {[%emt 0:09:18]} 24. Rc1 {[%emt 0:04:18]} Ne7 $2 {[%emt 0:07:05][%mdl 8192]} (24... Ne5 $11 25. Qh5 (25. Qe4 Nc4 $11) 25... Red8) 25. Nxe7+ $18 {[%emt 0:06:02]} (25. Nxh6+ $6 Kf8 26. Bg5 Qe6 $16) 25... Qxe7 {[%emt 0:00:07]} 26. Bd4 $1 {[%emt 0:00:24]} (26. Bxh6 Qe2 27. Qh3 Rc6 $16) 26... Bxd4 {[%emt 0:04:32]} 27. Rxc8 {[%emt 0:00:09]} Rxc8 {[%emt 0:00:09]} 28. Qxc8+ {[%emt 0:00:06][%mdl 4096] Endgame KQR-KQB} Kh7 {[%emt 0:00:14]} 29. h5 {[%emt 0:05:24]} Qe5 {[%emt 0:02:35]} 30. Qc2+ {[%emt 0:02:55]} f5 {[%emt 0:01:30]} 31. Rd1 {[%emt 0:01:30]} Bc5 {[%emt 0:03:00]} 32. Qd2 {[%emt 0:01:20]} Qe4 {[%emt 0:00:43]} 33. Re1 {[%emt 0:05:24]} Qh4 {[%emt 0:00:50][%cal Oc5b4]} 34. Re5 {[%emt 0:03:20]} Qxh5 {[%emt 0:00:31]} 35. Qd3 {[%emt 0:00:18]} Kg6 {[%emt 0:00:38]} 36. Qd7 {[%emt 0:07:13]} Qg5 {[%emt 0:00:16] ( -> ...Qc1+)} 37. Qe6+ {[%emt 0:02:02]} (37. Qxa7 Qc1+ 38. Kh2 Qf4+ (38... Bxf2 $2 39. Qf7+ Kxf7 40. Rxf5+ Kg8 41. Rxf2 $19) 39. Kh3 Qg4+ (39... Qxe5 $2 40. Qb7 $19) 40. Kh2 Qh4+ (40... Bxf2 $2 41. Qxb6+ Bxb6 42. Re6+ Kg5 43. Rxb6 $19) (40... Qf4+ 41. Kh3 Qg4+ 42. Kh2 Qh4+ 43. Kg1 Qxf2+ 44. Kh2 Qh4#) 41. Kg1 Qxf2+ 42. Kh2 Qh4#) 37... Qf6 {[%emt 0:00:18]} 38. Qd5 {[%emt 0:01:06]} Qg5 {[%emt 0:00:36]} 39. Qc4 {[%emt 0:06:18]} a5 {[%emt 0:00:34]} 40. Re8 {[%emt 0:00:50]} Kh5 {[%emt 0:00:57]} 41. Qf7+ {[%emt 0:02:46]} g6 {[%emt 0:07:32]} 42. Qc4 {[%emt 0:00:50] Inhibits Qc1+.} Qg4 {[%emt 0:04:53]} 43. Qd3 {[%emt 0:02:53]} Qf4 {[%emt 0:01:23]} 44. Re2 {[%emt 0:01:32]} Qd4 {[%emt 0:02:52]} 45. Qc2 {[%emt 0:09:53]} Kg5 {[%emt 0:07:27]} 46. Rd2 {[%emt 0:00:48]} Qe5 {[%emt 0:00:39]} 47. Rd1 {[%emt 0:01:08]} Qf4 {[%emt 0:01:19]} 48. Rd3 {[%emt 0:00:58]} (48. Qd2 {simplifies} Qxd2 49. Rxd2 h5 50. g3) 48... h5 {[%emt 0:03:22][%cal Bh6h5,Bh5h4][%mdl 32]} 49. g3 {[%emt 0:01:31]} Qe4 {[%emt 0:00:40]} 50. Qd2+ {[%emt 0:00:47]} Kf6 {[%emt 0:00:34]} 51. Kh2 {[%emt 0:05:18]} h4 {[%emt 0:02:13][%cal Oc5f2]} 52. Qc3+ {[%emt 0:00:49]} Ke6 {[%emt 0:01:04]} 53. Rd8 {[%emt 0:03:25]} Ke7 {[%emt 0:01:52] Prevents Re8+.} 54. Rd2 {[%emt 0:00:18] Chess con chili.} hxg3+ {[%emt 0:00:42]} 55. fxg3 {[%emt 0:00:01]} Kf7 {[%emt 0:00:12] [#] Dodges Qg7+} 56. a3 {[%emt 0:02:03]} Qb1 {[%emt 0:00:44]} 57. Qc4+ {[%emt 0:00:29]} Kf6 {[%emt 0:00:40] and ...Qg1+ should not be overlooked} 58. Qh4+ {[%emt 0:00:12]} Ke6 {[%emt 0:00:44]} 59. Re2+ {[%emt 0:01:03]} Kd7 $2 {[%emt 0:00:34][%mdl 8192] White stays focused until the end.} (59... Kf7 $14) 60. Qh7+ {[%emt 0:00:33]} Kc6 {[%emt 0:00:26]} 61. Qxg6+ {[%emt 0:00:16]} Kb7 $2 {[%emt 0:00:27]} (61... Kb5 62. Qe8+ Ka6 63. Qa8+ Kb5) 62. Qf7+ {[%emt 0:00:27]} Ka6 {[%emt 0:00:05]} 63. Qc4+ {[%emt 0:00:16]} Ka7 {[%emt 0:00:23]} 64. Rg2 {[%emt 0:03:15]} (64. b4 $142 axb4 65. axb4 Bxb4 66. Qd5) 64... Be3 $2 {[%emt 0:01:12]} (64... Kb8 {might work better.} 65. Qf4+ Ka7) 65. Qc7+ {[%emt 0:00:56]} Ka6 {[%emt 0:00:23]} 66. Qc4+ {[%emt 0:00:19]} Ka7 {[%emt 0:00:03]} 67. Qf7+ {[%emt 0:00:44]} Ka6 {[%emt 0:00:04]} 68. Qe6 {[%emt 0:00:28]} (68. Qd5 $142 {Qa8+ is the strong threat.} f4 69. Qc4+ Ka7 70. Qf7+ (70. gxf4 Qh7+ 71. Kg3 Bc5 $18) 70... Ka6 71. gxf4) 68... Bc5 $2 {[%emt 0:00:49]} (68... Qd3 69. Qc8+ Ka7) 69. Qd5 {[%emt 0:00:22][%cal Ob3b4]} Ka7 {[%emt 0:00:42]} (69... Qc1 $142 70. Qxf5 Qh6+ 71. Qh3 Qc6 (71... Qxh3+ $2 72. Kxh3 Bxa3 73. g4 $18)) 70. b4 {[%emt 0:00:07]} axb4 {[%emt 0:00:59]} (70... Be3 $142 71. bxa5 f4 72. Qf7+ (72. axb6+ Kxb6 73. Qd6+ Ka7 $18) 72... Ka6 73. gxf4 Qf1) 71. axb4 {[%emt 0:00:02]} Bxb4 {[%emt 0:00:27]} 72. Ra2+ {[%emt 0:00:16]} Ba5 {[%emt 0:00:02]} 73. Qf7+ {[%emt 0:00:28]} Ka6 {[%emt 0:00:10]} 74. Qc4+ {[%emt 0:00:02]} Ka7 {[%emt 0:00:04]} 75. Re2 {[%emt 0:01:02]} Bb4 {[%emt 0:00:47] Prevents Re7+} 76. Qc7+ {[%emt 0:01:12]} Ka6 {[%emt 0:00:10]} 77. Qc8+ {[%emt 0:00:29]} Ka7 {[%emt 0:00:26] [#]} 78. Qd7+ $1 {[%emt 0:00:46] White mates.} Ka6 {[%emt 0:00:12]} 79. Re8 {[%emt 0:00:34][%cal Re8a8]} b5 {[%emt 0:02:01]} 80. Qc6+ {[%emt 0:00:07] Weighted Error Value: White=0.13 (very precise) /Black=0.27 (precise)   Loses game:     	---       	Black=2      Mistake:       	White=3     	Black=4      Inaccurate:     	White=1     	Black=4      OK:         	White=23    	Black=22     Best:        	White=4     	Black=10     Strong:       	White=1     	---} 1-0

[Event "Frauenbundesliga 2024-25"]
[Site "Germany"]
[Date "2025.01.26"]
[Round "4.3"]
[White "Muetsch, Annmarie"]
[Black "Khotenashvili, Bella"]
[Result "1/2-1/2"]
[Annotator "TA"]
[ECO "B12"]
[WhiteElo "2252"]
[BlackElo "2420"]
[PlyCount "129"]
[EventDate "2024.11.06"]
[EventType "team-tourn"]
[EventCountry "GER"]
[SourceTitle "playchess.com"]
[Source "ChessBase"]
[SourceQuality "1"]
[TimeControl "40/5400+30:1800+30"]

{[%evp 10,129,23,1,16,16,10,14,28,25,30,18,22,-1,-7,0,22,29,27,16,30,0,0,0,7,0,0,0,0,-32,-39,-46,-47,-63,-54,-81,-74,-106,-95,-116,-110,-158,-70,-83,-73,-139,-76,-78,-52,-207,-178,-176,0,-352,-90,-121,-103,-103,-92,-98,-54,-75,-9,-50,0,-152,-103,-160,0,-338,-323,-335,-336,-314,-321,-330,-321,-395,-383,-435,-270,-271,-270,-241,-150,-158,-154,-181,-187,-185,-167,-167,-171,-177,-72,-218,-209,-202,-194,-210,-172,-383,-383,-508,-303,-491,-437,-363,-340,-340,-339,-473,0,0,0,0,0,0,0,0,0,0]} 1. e4 {[%emt 0:00:08]} c6 {[%emt 0:00:16]} 2. d4 {[%emt 0:00:25]} d5 {[%emt 0:00:06]} 3. e5 {[%emt 0:00:06]} Bf5 {[%emt 0:00:04]} 4. Nd2 {[%emt 0:00:20]} e6 {[%emt 0:00:15]} 5. Nb3 {[%emt 0:00:10]} Nd7 {[%emt 0:00:13]} 6. Nf3 {[%emt 0:00:32]} Qc7 $1 {[%emt 0:01:51][%mdl 4] now scores much better than the old 6...Ne7. B12: Caro-Kann: Advance Variation.} 7. Be2 {[%emt 0:01:19]} c5 {[%emt 0:00:07]} 8. c3 {[%emt 0:01:13]} c4 {[%emt 0:01:22]} 9. Nbd2 {[%emt 0:00:11]} h6 {[%emt 0:00:46]} 10. O-O {[%emt 0:03:07]} Ne7 {[%emt 0:04:04]} 11. Nh4 {[%emt 0:04:32]} Bh7 {[%emt 0:02:46]} 12. g3 $146 {[%emt 0:02:10]} (12. f4 g5 13. fxg5 hxg5 14. Nhf3 Nf5 15. Nb1 g4 16. Ng5 Nxe5 17. Bf4 Bd6 18. dxe5 Bxe5 {1-0 Oparin,G (2604)-Faizrakhmanov,R (2439) RUS-chT 24th 2017 (7.5)}) 12... Nc6 {[%emt 0:08:27]} 13. f4 {[%emt 0:07:01]} Be7 {[%emt 0:00:33]} 14. Ng2 {[%emt 0:00:58]} b5 {[%emt 0:05:59]} 15. Ne3 {[%emt 0:08:35]} Qb6 {[%emt 0:04:07]} 16. Rf2 {[%emt 0:04:42]} O-O {[%emt 0:05:17]} 17. Ndf1 {[%emt 0:07:09]} Be4 {[%emt 0:27:16]} 18. Bf3 {[%emt 0:08:18]} Bd3 {[%emt 0:00:51]} 19. f5 {[%emt 0:08:33][%cal Of3d5] [#]} Ncxe5 $1 {[%emt 0:09:49]} 20. dxe5 {[%emt 0:02:03]} Nxe5 {[%emt 0:00:04]} 21. Be2 {[%emt 0:08:08]} Rad8 {[%emt 0:02:34]} 22. f6 {[%emt 0:06:26]} Bxf6 {[%emt 0:01:47]} (22... gxf6 $6 23. Ng2 $11) 23. Nc2 {[%emt 0:01:53]} Bg5 {[%emt 0:14:15] White is weak on the light squares} 24. Bxg5 {[%emt 0:05:47]} hxg5 {[%emt 0:00:10]} 25. Nd4 {[%emt 0:04:22]} (25. Nfe3 $142) 25... b4 {[%emt 0:04:01]} (25... Bxe2 $1 $17 26. Qxe2 Nd3) 26. Ne3 {[%emt 0:01:52]} f5 {[%emt 0:05:28]} 27. Qd2 {[%emt 0:02:39]} ({Better is} 27. Qa4) 27... Rf6 {[%emt 0:00:02]} (27... Bxe2 $142 $1 28. Qxe2 Nd3) 28. Raf1 $17 {[%emt 0:01:10]} Rdf8 {[%emt 0:01:24]} 29. h3 $2 {[%emt 0:07:59]} (29. Ng2 $1 $15) 29... bxc3 $19 {[%emt 0:00:24]} 30. bxc3 {[%emt 0:00:06]} Rh6 $2 {[%emt 0:00:16]} (30... Be4 $19 31. Ng2 Rh6) 31. Ng2 $2 {[%emt 0:01:42][%mdl 8192]} (31. Ng4 $1 $11 Nxg4 (31... Rxh3 $2 32. Nxe5 Be4 33. Rh2 $18) 32. hxg4) 31... Qd8 $2 {[%emt 0:00:52]} (31... Rxh3 $19 32. Qxg5 Be4) 32. h4 $17 {[%emt 0:00:32]} gxh4 {[%emt 0:00:07]} 33. Nxh4 {[%emt 0:00:08]} Be4 {[%emt 0:00:25][%csl Oe4] Strong Square Black (e4)} 34. Rh2 {[%emt 0:01:31]} Qf6 {[%emt 0:00:48]} 35. Bf3 {[%emt 0:00:41]} Nxf3+ {[%emt 0:00:35]} (35... Rf7 $17 {Threatens to win with ...g5.} 36. Ng2 Nxf3+ (36... Rxh2 37. Kxh2 Nd3 38. Bxe4 $11) 37. Nxf3 f4 (37... Rxh2 38. Kxh2 Rf8 39. Kg1 $11)) 36. Ndxf3 {[%emt 0:00:38]} (36. Nhxf3 $5 Rxh2 37. Nxh2 $15) 36... e5 {[%emt 0:00:28]} (36... Rh5 $1 $15) 37. Re1 $2 {[%emt 0:00:55]} (37. Ng5 $11 Bd3 38. Re1 (38. Rff2 Rb8 $15)) 37... Rh5 {[%emt 0:00:32]} (37... f4 $142 38. g4 Qb6+ 39. Qf2 Qxf2+ 40. Kxf2 Bxf3 41. Nxf3 Rxh2+ 42. Nxh2 e4) 38. Qf2 {[%emt 0:00:49]} (38. Rf1 $142) 38... Rf7 $2 {[%emt 0:00:28]} (38... g5 $1 $17 {[%cal Rg5h4]} 39. Ng2 Rxh2 40. Nxh2 f4) 39. Qc5 $2 {[%emt 0:00:25][%mdl 8192]} (39. Nd2 $11 {and White has nothing to worry.}) 39... g5 $1 $19 {[%emt 0:00:27]} 40. Ng2 {[%emt 0:00:42]} (40. Qc8+ Rf8 (40... Kg7 $2 41. Ng2 $19) 41. Qc5 gxh4) 40... Bxf3 {[%emt 0:00:31]} 41. Rxh5 {[%emt 0:01:44]} Bxh5 {[%emt 0:02:29]} 42. Qxd5 {[%emt 0:01:06]} e4 {[%emt 0:03:53]} 43. Qxc4 {[%emt 0:00:28]} Qd6 {[%emt 0:06:52]} 44. Rb1 {[%emt 0:07:58]} Kg7 {[%emt 0:09:01]} 45. Qd4+ {[%emt 0:06:13]} Qxd4+ {[%emt 0:00:27]} 46. cxd4 {[%emt 0:00:05][%mdl 4096] Endgame KRB-KRN. Black is a pawn up.} f4 {[%emt 0:03:48]} 47. Rb5 {[%emt 0:00:43]} Kh6 $1 {[%emt 0:04:13]} (47... fxg3 48. Rxg5+ Kh6 49. Rxg3 $11) 48. gxf4 {[%emt 0:04:32]} gxf4 {[%emt 0:00:01]} 49. Kf2 {[%emt 0:00:08] Repels Be2} e3+ {[%emt 0:03:49]} 50. Nxe3 {[%emt 0:00:06]} fxe3+ {[%emt 0:00:03]} 51. Kxe3 {[%emt 0:00:05] KRB-KR} Kg6 {[%emt 0:00:59]} (51... Rf3+ $1 $19 {and Black stays clearly on top.} 52. Ke4 Ra3) 52. Re5 {[%emt 0:01:38] [#]} (52. Ra5 $17) 52... Rf3+ $1 {[%emt 0:00:17]} 53. Ke4 {[%emt 0:00:48][%cal Oe5h5]} Ra3 {[%emt 0:00:03]} 54. d5 {[%emt 0:01:38]} Rxa2 {[%emt 0:00:56]} 55. d6 $2 {[%emt 0:00:11] [#]} (55. Kf4) 55... Bg4 $1 {[%emt 0:00:21]} 56. Kf4 {[%emt 0:01:49] [#]} Bf5 {[%emt 0:00:43][%mdl 512]} 57. Re8 $2 {[%emt 0:02:23]} (57. Rc5 {was worth a try.}) (57. Ke3 Ra6) 57... Ra4+ {[%emt 0:00:32]} 58. Ke3 {[%emt 0:00:36]} Kf7 {[%emt 0:00:39]} 59. Re7+ {[%emt 0:00:48]} Kf6 {[%emt 0:00:01]} 60. Re8 {[%emt 0:01:23]} a6 $2 {[%emt 0:00:56]} ({Black should play} 60... Be6 $19 61. Re7 a6) 61. Rf8+ $1 $11 {[%emt 0:01:19] The position is equal.} Ke5 {[%emt 0:00:31]} 62. Rxf5+ {[%emt 0:01:00]} Kxd6 {[%emt 0:00:22]} (62... Kxf5 $2 {perishes.} 63. d7 $18) 63. Kd3 {[%emt 0:00:13]} Kc6 {[%emt 0:00:07]} 64. Kc3 {[%emt 0:00:06]} Re4 {[%emt 0:00:08]} 65. Kb3 {[%emt 0:00:10] Weighted Error Value: White=0.49/Black=0.46  Loses game:     	White=2     	---        Missed win:     	---       	Black=3      Mistake:       	White=8     	Black=7      Inaccurate:     	White=7     	Black=5      OK:         	White=18    	Black=21     Best:        	White=4     	Black=1      Strong:       	White=1     	Black=3} 1/2-1/2